bitfinex/quotes_BTCUSD_20250522
["timestamp","ask_amount","ask_price","bid_price","bid_amount"]
[1747930426142,0.19764033,111390.0,111380.0,2.39317956]
[1747930426354,0.19764033,111390.0,111380.0,2.49170331]
[1747930426582,0.18866295,111390.0,111380.0,2.30315967]
[1747930427566,0.18866295,111390.0,111380.0,2.71585967]
[1747930436688,0.18866295,111390.0,111380.0,2.71581967]
[1747930438185,0.18866295,111390.0,111380.0,2.90436331]
[1747930438399,0.18866295,111390.0,111380.0,2.91334134]
[1747930439426,0.18866295,111390.0,111380.0,2.55538512]
[1747930439661,0.17968549,111390.0,111380.0,2.37581967]
[1747930440633,0.17968549,111390.0,111380.0,2.55538512]
[1747930441077,0.17968549,111390.0,111380.0,2.57334142]
[1747930441536,0.00911298,111390.0,111380.0,2.59129707]
[1747930441750,0.02706734,111390.0,111380.0,2.59129707]
[1747930441997,0.02706734,111390.0,111380.0,2.93129707]
[1747930442220,0.02706726,111390.0,111380.0,2.93129707]
[1747930442451,0.03604456,111390.0,111380.0,2.93129707]
[1747930442878,0.04502194,111390.0,111380.0,2.93129707]
[1747930443093,0.03604456,111390.0,111380.0,2.93129707]
[1747930443313,0.0270671,111390.0,111380.0,2.94583792]
[1747930443534,0.0091129,111390.0,111380.0,2.94583792]
[1747930443752,0.02706702,111390.0,111380.0,2.94583792]
[1747930443969,0.0180898,111390.0,111380.0,2.94583792]
[1747930444185,0.00013616,111390.0,111380.0,2.94583792]
[1747930444882,0.00013616,111390.0,111380.0,2.53313792]
[1747930445572,0.00911306,111390.0,111380.0,2.53313792]
[1747930445797,0.05,111400.0,111390.0,0.6083216]
[1747930446018,0.06804279,111400.0,111390.0,3.02324416]
[1747930446230,0.08599561,111400.0,111390.0,3.02324416]
[1747930446892,0.09497219,111400.0,111390.0,3.02324416]
[1747930447122,0.08599561,111400.0,111390.0,3.02324416]
[1747930447326,0.07701888,111400.0,111390.0,2.97924416]
[1747930447544,0.06804263,111400.0,111390.0,2.97924416]
[1747930447762,0.07701888,111400.0,111390.0,2.97924416]
[1747930448190,0.07701888,111400.0,111390.0,3.60844416]
[1747930448669,0.08599529,111400.0,111390.0,3.61044416]
[1747930449045,0.08599529,111400.0,111390.0,3.61244416]
[1747930449259,0.09497178,111400.0,111390.0,3.61244416]
[1747930449446,0.27450572,111400.0,111390.0,3.61244416]
[1747930449656,0.08599585,111400.0,111390.0,3.61244416]
[1747930450075,0.08599585,111400.0,111390.0,3.43542256]
[1747930450076,0.2475768,111400.0,111390.0,3.43542256]
[1747930450507,0.2475768,111400.0,111390.0,3.38812256]
[1747930451549,0.2475768,111400.0,111390.0,2.97542256]
[1747930451957,0.2475768,111400.0,111390.0,3.02462256]
[1747930455567,0.2475768,111400.0,111390.0,3.02466256]
[1747930456381,0.2475768,111400.0,111390.0,2.39546256]
[1747930456596,0.2475768,111400.0,111390.0,3.01866256]
[1747930457026,0.2475768,111400.0,111390.0,2.34626256]
[1747930457258,0.2717768,111400.0,111390.0,2.610917]
[1747930457470,0.2954768,111400.0,111390.0,2.539917]
[1747930458118,0.2954768,111400.0,111390.0,2.879917]
[1747930458786,0.2954768,111400.0,111390.0,3.08639815]
[1747930458787,0.25655338,111400.0,111390.0,3.08639815]
[1747930459010,0.24757697,111400.0,111390.0,3.13559815]
[1747930459275,0.24757697,111400.0,111390.0,3.12662101]
[1747930459495,0.23860048,111400.0,111390.0,3.12662101]
[1747930459730,0.2296239,111400.0,111390.0,2.710202]
[1747930461593,0.05009069,111400.0,111390.0,3.00402831]
[1747930461815,0.06804271,111400.0,111390.0,3.01856916]
[1747930462025,0.05009069,111400.0,111390.0,3.01856916]
[1747930462683,0.05009069,111400.0,111390.0,3.04548616]
[1747930463327,0.0590667,111400.0,111390.0,3.04548616]
[1747930463535,0.05906662,111400.0,111390.0,3.04548616]
[1747930463739,0.05906662,111400.0,111390.0,3.45818616]
[1747930464156,0.06804271,111400.0,111390.0,3.45818616]
[1747930465423,0.05906662,111400.0,111390.0,3.45818616]
[1747930465597,0.0770188,111400.0,111390.0,3.45818616]
[1747930465871,0.06804263,111400.0,111390.0,3.45818616]
[1747930466078,0.0770188,111400.0,111390.0,3.45818616]
[1747930467132,0.07701872,111400.0,111390.0,3.45818616]
[1747930467826,0.08599497,111400.0,111390.0,3.45818616]
[1747930468504,0.09497195,111400.0,111390.0,3.46716314]
[1747930468944,0.07701904,111400.0,111390.0,3.46716314]
[1747930469363,0.08599545,111400.0,111390.0,3.46716314]
[1747930470367,0.07701904,111400.0,111390.0,3.46716314]
[1747930470983,0.2745054,111400.0,111390.0,3.46716314]
[1747930471193,0.08599553,111400.0,111390.0,3.46716314]
[1747930471594,0.08599537,111400.0,111390.0,3.46716314]
[1747930471791,0.09497186,111400.0,111390.0,3.46716314]
[1747930472229,0.09497186,111400.0,111390.0,3.48756614]
[1747930472442,0.26552906,111400.0,111390.0,3.47858924]
[1747930472699,0.26552906,111400.0,111390.0,3.48756614]
[1747930472905,0.08599585,111400.0,111390.0,3.48756614]
[1747930473238,0.24757672,111400.0,111390.0,3.43711689]
[1747930473555,0.24757672,111400.0,111390.0,3.42299427]
[1747930473986,0.24757672,111400.0,111390.0,3.43197141]
[1747930474194,0.24757672,111400.0,111390.0,3.45627141]
[1747930474612,0.23860039,111400.0,111390.0,3.44729427]
[1747930475238,0.23860039,111400.0,111390.0,2.82409427]
[1747930475446,0.23860039,111400.0,111390.0,3.44725427]
[1747930475743,0.23860039,111400.0,111390.0,3.42295427]
[1747930475934,0.23860039,111400.0,111390.0,3.39905427]
[1747930477224,0.23860039,111400.0,111390.0,3.44785427]
[1747930477825,0.23860039,111400.0,111390.0,3.45683157]
[1747930478239,0.23860039,111400.0,111390.0,3.46580879]
[1747930478466,0.23860039,111400.0,111390.0,3.47478593]
[1747930478901,0.06804343,111400.0,111390.0,3.48376251]
[1747930479125,0.24757664,111400.0,111390.0,3.44785419]
[1747930479348,0.24757664,111400.0,111390.0,3.45683133]
[1747930479590,0.06804295,111400.0,111390.0,3.46580823]
[1747930479808,0.07701936,111400.0,111390.0,3.46580823]
[1747930480720,0.07701944,111400.0,111390.0,3.46580823]
[1747930480963,0.06804295,111400.0,111390.0,3.46580823]
[1747930481178,0.07701936,111400.0,111390.0,3.46580823]
[1747930481604,0.0590667,111400.0,111390.0,3.46580823]
[1747930481812,0.05906678,111400.0,111390.0,3.48034908]
[1747930482249,0.06804295,111400.0,111390.0,3.48034908]
[1747930483673,0.08599569,111400.0,111390.0,3.48034908]
[1747930485088,0.0770192,111400.0,111390.0,3.48034908]
[1747930485291,0.0949721,111400.0,111390.0,3.48034908]
[1747930485801,0.09497259,111400.0,111390.0,3.48034908]
[1747930486038,0.24757697,111400.0,111390.0,2.94152756]
[1747930486268,0.24757697,111400.0,111390.0,3.39007689]
[1747930486469,0.24757697,111400.0,111390.0,3.39905435]
[1747930486696,0.24757697,111400.0,111390.0,3.40803173]
[1747930487109,0.24757697,111400.0,111390.0,3.45823173]
[1747930487319,0.24757697,111400.0,111390.0,3.47618609]
[1747930487500,0.06804343,111400.0,111390.0,3.48516259]
[1747930487735,0.24757664,111400.0,111390.0,3.47618569]
[1747930487945,0.24757664,111400.0,111390.0,3.46720863]
[1747930488333,0.06804343,111400.0,111390.0,3.47622553]
[1747930488488,0.25655322,111400.0,111390.0,3.47622553]
[1747930488691,0.26552988,111400.0,111390.0,3.46724863]
[1747930489124,0.26552988,111400.0,111390.0,3.81622561]
[1747930489335,0.05906678,111400.0,111390.0,3.83974336]
[1747930490106,0.06804295,111400.0,111390.0,3.83974336]
[1747930490537,0.05009069,111400.0,111390.0,3.83974336]
[1747930490946,0.0590667,111400.0,111390.0,3.83974336]
[1747930491409,0.05009069,111400.0,111390.0,3.83974336]
[1747930491634,0.06804271,111400.0,111390.0,3.83974336]
[1747930491823,0.05906662,111400.0,111390.0,3.83974336]
[1747930491952,0.05906662,111400.0,111390.0,3.65461136]
[1747930492156,0.06804271,111400.0,111390.0,3.65461136]
[1747930492361,0.05009069,111400.0,111390.0,3.65461136]
[1747930493231,0.06804311,111400.0,111390.0,3.65461136]
[1747930493489,0.0590667,111400.0,111390.0,3.65461136]
[1747930493714,0.05906662,111400.0,111390.0,3.65461136]
[1747930494162,0.05009069,111400.0,111390.0,3.65461136]
[1747930494951,0.002,111410.0,111400.0,0.55042493]
[1747930495188,0.0020505,111410.0,111400.0,2.20144049]
[1747930495402,0.0020505,111410.0,111400.0,2.82008049]
[1747930495767,0.0020505,111410.0,111400.0,3.59183049]
[1747930496375,0.0030505,111410.0,111400.0,3.59183049]
[1747930499721,0.0030505,111410.0,111400.0,3.17913049]
[1747930500129,0.0020505,111410.0,111400.0,3.17913049]
[1747930500379,0.0020505,111410.0,111400.0,3.59383049]
[1747930500849,0.0020505,111410.0,111400.0,3.59583049]
[1747930501048,0.0020505,111410.0,111400.0,3.57007987]
[1747930501627,0.07215333,111460.0,111440.0,0.02]
[1747930501829,0.25160441,111460.0,111450.0,2.85851]
[1747930502064,0.00947654,111460.0,111450.0,2.85851]
[1747930502267,0.0089682,111500.0,111480.0,0.342]
[1747930502493,0.0089682,111500.0,111490.0,2.13123]
[1747930502494,0.31337448,111500.0,111490.0,2.13123]
[1747930502696,0.29548868,111500.0,111490.0,2.13123]
[1747930502897,0.30385969,111500.0,111490.0,1.14386]
[1747930503114,0.18835753,111490.0,111480.0,0.342]
[1747930503342,0.27790309,111490.0,111480.0,0.96052]
[1747930503612,0.27790309,111490.0,111480.0,0.96152]
[1747930504055,0.27790309,111490.0,111480.0,0.96052]
[1747930504258,0.27790309,111490.0,111480.0,0.002]
[1747930504424,0.28190309,111490.0,111480.0,0.003]
[1747930504634,0.33837463,111490.0,111480.0,0.62148]
[1747930505023,0.33837463,111490.0,111480.0,0.003]
[1747930505226,0.33837463,111490.0,111480.0,0.62148]
[1747930505637,0.33837463,111490.0,111480.0,0.003]
[1747930505852,0.33837463,111490.0,111480.0,0.62148]
[1747930506058,0.33837463,111490.0,111480.0,0.003]
[1747930506262,0.33837463,111490.0,111480.0,0.62148]
[1747930510747,0.33000309,111490.0,111480.0,0.62148]
[1747930511429,0.33000309,111490.0,111480.0,0.62152]
[1747930513364,0.28190309,111490.0,111480.0,2.48483158]
[1747930513605,0.28190309,111490.0,111480.0,2.13419]
[1747930513840,0.32990309,111490.0,111480.0,1.34752]
[1747930514061,0.32990309,111490.0,111480.0,0.86732]
[1747930514263,0.32990309,111490.0,111480.0,0.16474]
[1747930514480,0.32990309,111490.0,111480.0,0.78154]
[1747930514679,0.32990309,111490.0,111480.0,0.81196247]
[1747930515360,0.32990309,111490.0,111480.0,0.66958796]
[1747930515610,0.38083567,111490.0,111480.0,0.02085228]
[1747930515845,0.38083567,111490.0,111480.0,0.63646381]
[1747930515846,0.32990309,111490.0,111480.0,0.63646381]
[1747930517580,0.32990309,111490.0,111480.0,1.04916381]
[1747930523612,0.32990309,111490.0,111480.0,0.63646381]
[1747930524272,0.32890309,111490.0,111480.0,0.63646381]
[1747930524522,0.33727184,111490.0,111480.0,0.63646381]
[1747930524742,0.34624101,111490.0,111480.0,0.81586818]
[1747930525414,0.32264101,111490.0,111480.0,0.81586818]
[1747930525838,0.32264101,111490.0,111480.0,0.63646381]
[1747930526057,0.29824101,111490.0,111480.0,0.63646381]
[1747930526281,0.28884101,111490.0,111480.0,0.63646381]
[1747930526723,0.26721026,111490.0,111480.0,0.81586818]
[1747930527371,0.26721026,111490.0,111480.0,0.63642381]
[1747930527855,0.26721026,111490.0,111480.0,2.19712818]
[1747930528083,0.10988324,111490.0,111480.0,2.58713989]
[1747930528313,0.30720978,111490.0,111480.0,2.58713989]
[1747930528537,0.09254556,111490.0,111480.0,2.92713997]
[1747930528751,0.12842152,111490.0,111480.0,2.9540498]
[1747930528975,0.30781052,111490.0,111480.0,2.94508015]
[1747930529164,0.29884167,111490.0,111480.0,2.92713997]
[1747930529434,0.28987258,111490.0,111480.0,2.73876539]
[1747930529658,0.28090325,111490.0,111480.0,2.73876539]
[1747930529882,0.28090325,111490.0,111480.0,2.91816976]
[1747930530112,0.28090325,111490.0,111480.0,2.73876539]
[1747930532758,0.2892869,111490.0,111480.0,2.92713997]
[1747930533005,0.01138365,111490.0,111480.0,3.32469122]
[1747930533228,0.01138365,111490.0,111480.0,3.32465122]
[1747930533863,0.003,111490.0,111480.0,3.32465122]
[1747930534369,0.00580303,111490.0,111480.0,2.97400964]
[1747930534568,0.01477172,111490.0,111480.0,2.97400964]
[1747930534776,0.01477172,111490.0,111480.0,3.32465122]
[1747930535040,0.003,111490.0,111480.0,3.32465122]
[1747930536226,0.01196869,111490.0,111480.0,3.32465122]
[1747930536451,0.003,111490.0,111480.0,3.32465122]
[1747930537107,0.003,111490.0,111480.0,3.73735122]
[1747930537755,0.00855373,111530.0,111510.0,0.42413456]
[1747930538019,0.0143103,111570.0,111560.0,0.5461661]
[1747930538238,0.26593151,111590.0,111570.0,0.1729897]
[1747930538455,0.00896161,111580.0,111570.0,0.92594413]
[1747930538688,0.07713301,111590.0,111580.0,0.19716737]
[1747930538899,0.11297689,111590.0,111580.0,1.86331158]
[1747930539108,0.2770836,111590.0,111580.0,2.12931]
[1747930539328,0.07713301,111590.0,111580.0,3.05539517]
[1747930539543,0.11628325,111590.0,111580.0,2.87615158]
[1747930539765,0.27758915,111590.0,111580.0,2.81995158]
[1747930539987,0.24627606,111590.0,111580.0,2.500701]
[1747930540200,0.05112604,111590.0,111580.0,2.29070258]
[1747930540448,0.06904774,111590.0,111580.0,3.22289728]
[1747930540669,0.06008677,111590.0,111580.0,3.21393567]
[1747930540885,0.06904766,111590.0,111580.0,3.13335172]
[1747930541094,0.03645841,111590.0,111580.0,3.22289728]
[1747930541306,0.02810681,111590.0,111580.0,3.22289728]
[1747930541518,0.03706754,111590.0,111580.0,3.22289728]
[1747930541727,0.02810681,111590.0,111580.0,3.23845851]
[1747930542064,0.17917981,111620.0,111610.0,0.4062]
[1747930542157,0.20605551,111620.0,111610.0,0.60331479]
[1747930542374,0.20605551,111620.0,111610.0,3.08314637]
[1747930542375,0.2145086,111620.0,111610.0,3.08314637]
[1747930542591,0.2145086,111620.0,111610.0,3.12554158]
[1747930542592,0.01741133,111620.0,111610.0,3.12554158]
[1747930542817,0.00845309,111620.0,111610.0,3.22508714]
[1747930543283,0.00845309,111620.0,111610.0,2.87444556]
[1747930543506,0.00945309,111620.0,111610.0,2.87444556]
[1747930543733,0.01841133,111620.0,111610.0,3.22508714]
[1747930543959,0.00845309,111620.0,111610.0,2.88898641]
[1747930544190,0.09470278,111640.0,111630.0,0.27157922]
[1747930544441,0.06783158,111640.0,111630.0,2.7994084]
[1747930544673,0.26489307,111640.0,111630.0,2.94433158]
[1747930544894,0.25593619,111640.0,111630.0,3.13245304]
[1747930545109,0.24697923,111640.0,111630.0,2.90273158]
[1747930545334,0.24697923,111640.0,111630.0,2.86971158]
[1747930545563,0.24697923,111640.0,111630.0,2.51907]
[1747930545804,0.24697923,111640.0,111630.0,2.86971158]
[1747930546206,0.24697923,111640.0,111630.0,2.87971158]
[1747930546629,0.24697923,111640.0,111630.0,2.51911]
[1747930546839,0.24697923,111640.0,111630.0,2.87975158]
[1747930547069,0.24697923,111640.0,111630.0,2.52911]
[1747930547280,0.24697923,111640.0,111630.0,2.54209914]
[1747930547901,0.24697923,111640.0,111630.0,3.0998201]
[1747930548109,0.24697923,111640.0,111630.0,2.91269888]
[1747930548356,0.58358846,111650.0,111640.0,0.34]
[1747930548551,0.58358846,111650.0,111640.0,1.85267]
[1747930548811,0.58358846,111650.0,111640.0,1.52568099]
[1747930549035,0.58358846,111650.0,111640.0,1.88632257]
[1747930549260,0.6015015,111650.0,111640.0,2.1071271]
[1747930549485,0.59254502,111650.0,111640.0,1.91902257]
[1747930549930,0.59254502,111650.0,111640.0,1.88632257]
[1747930550249,0.59354502,111650.0,111640.0,1.88632257]
[1747930550715,0.59354502,111650.0,111640.0,1.52568099]
[1747930550942,0.59354502,111650.0,111640.0,1.97057099]
[1747930551597,0.59354502,111650.0,111640.0,1.12837099]
[1747930551819,0.59354502,111650.0,111640.0,1.06667099]
[1747930553394,0.68309058,111650.0,111640.0,1.06655099]
[1747930553846,0.68309058,111650.0,111640.0,1.04557208]
[1747930554996,0.68309058,111650.0,111640.0,0.42633208]
[1747930555181,0.68309058,111650.0,111640.0,1.04557208]
[1747930556052,0.68309058,111650.0,111640.0,1.05711108]
[1747930556481,0.68309058,111650.0,111640.0,1.46981108]
[1747930556885,0.69132518,111650.0,111640.0,1.40775266]
[1747930557336,0.69132518,111650.0,111640.0,1.40771266]
[1747930558196,0.61073594,111650.0,111640.0,1.63567423]
[1747930558409,0.61073594,111650.0,111640.0,1.63567439]
[1747930558826,0.61073373,111650.0,111640.0,1.68583143]
[1747930559044,0.61969029,111650.0,111640.0,1.65895991]
[1747930559246,0.61073422,111650.0,111640.0,1.47981266]
[1747930559465,0.61073422,111650.0,111640.0,1.51109095]
[1747930559675,0.61073422,111650.0,111640.0,1.69919556]
[1747930560308,0.44951442,111650.0,111640.0,1.72452768]
[1747930560525,0.43406553,111650.0,111640.0,1.72452768]
[1747930560733,0.44302185,111650.0,111640.0,1.72452768]
[1747930560944,0.45197833,111650.0,111640.0,1.72452768]
[1747930561170,0.40719764,111650.0,111640.0,2.57741482]
[1747930562262,0.40719764,111650.0,111640.0,1.1584293]
[1747930562468,0.41615355,111650.0,111640.0,2.13718768]
[1747930562692,0.40719764,111650.0,111640.0,2.57737482]
[1747930562897,0.41615355,111650.0,111640.0,2.57737482]
[1747930563117,0.40719764,111650.0,111640.0,3.27521567]
[1747930563320,0.39611549,111650.0,111640.0,3.27621567]
[1747930563770,0.39611549,111650.0,111640.0,3.61621567]
[1747930564191,0.002,111670.0,111660.0,0.22598146]
[1747930564409,0.00215134,111670.0,111660.0,2.5034116]
[1747930565089,0.00215134,111670.0,111660.0,3.61395245]
[1747930565324,0.00563,111680.0,111670.0,0.29006302]
[1747930565550,0.00563,111680.0,111670.0,2.66219401]
[1747930566002,0.01458343,111680.0,111670.0,2.66219401]
[1747930566432,0.00563,111680.0,111670.0,2.66219401]
[1747930567059,0.00563,111680.0,111670.0,2.66319401]
[1747930567254,0.00563,111680.0,111670.0,3.01383559]
[1747930568201,0.00563,111680.0,111670.0,2.66319401]
[1747930568429,0.00563,111680.0,111670.0,2.64865316]
[1747930568647,0.00563,111680.0,111670.0,3.26765316]
[1747930569297,0.01458343,111680.0,111670.0,2.64865316]
[1747930569494,0.21157466,111680.0,111670.0,2.54119858]
[1747930569710,0.01458343,111680.0,111670.0,3.18702239]
[1747930569925,0.00563,111680.0,111670.0,3.98336319]
[1747930570388,0.00563,111680.0,111670.0,4.67400477]
[1747930570599,0.00563,111680.0,111670.0,3.64671882]
[1747930571306,0.00563,111680.0,111670.0,3.29607724]
[1747930571510,0.00563,111680.0,111670.0,3.64671882]
[1747930571725,0.00563,111680.0,111670.0,3.63217797]
[1747930572376,0.00563,111680.0,111670.0,3.01160319]
[1747930572566,0.00563,111680.0,111670.0,3.63048319]
[1747930573053,0.00563,111680.0,111670.0,3.63052319]
[1747930573716,0.00563,111680.0,111670.0,3.98116477]
[1747930573953,0.00563,111680.0,111670.0,3.63052319]
[1747930574171,0.00563,111680.0,111670.0,3.64506404]
[1747930574600,0.00563,111680.0,111670.0,4.32836404]
[1747930574819,0.00563,111680.0,111670.0,4.32136848]
[1747930575468,0.00563,111680.0,111670.0,4.67201006]
[1747930576557,0.00563,111680.0,111670.0,4.31310763]
[1747930576978,0.21437311,111680.0,111670.0,2.81099776]
[1747930577169,0.0235371,111680.0,111670.0,3.12581802]
[1747930577377,0.00563,111680.0,111670.0,3.12720768]
[1747930577592,0.00563,111680.0,111670.0,3.18950768]
[1747930578223,0.01458351,111680.0,111670.0,3.18811802]
[1747930578420,0.00563,111680.0,111670.0,2.53244768]
[1747930578626,0.03528972,111680.0,111670.0,3.10790876]
[1747930578838,0.03528972,111680.0,111670.0,3.11825313]
[1747930579073,0.00563,111680.0,111670.0,3.19090752]
[1747930579506,0.00563,111680.0,111670.0,2.56574752]
[1747930579716,0.00563,111680.0,111670.0,3.19090752]
[1747930579924,0.00563,111680.0,111670.0,2.56574752]
[1747930580126,0.00563,111680.0,111670.0,3.18951786]
[1747930580262,0.00563,111680.0,111670.0,3.19090752]
[1747930580508,0.00563,111680.0,111670.0,2.65529308]
[1747930580696,0.00563,111680.0,111670.0,3.28045308]
[1747930581789,0.00563,111680.0,111670.0,3.25809422]
[1747930582033,0.00563,111680.0,111670.0,3.25948388]
[1747930582673,0.00563,111680.0,111670.0,2.63432388]
[1747930582896,0.00563,111680.0,111670.0,3.25948388]
[1747930583088,0.00563,111680.0,111670.0,3.61012546]
[1747930583705,0.00563,111680.0,111670.0,4.63342546]
[1747930584707,0.00563,111680.0,111670.0,4.28278388]
[1747930585274,0.22052825,111680.0,111670.0,2.26616067]
[1747930585505,0.01458367,111680.0,111670.0,3.46569451]
[1747930585714,0.00842831,111680.0,111670.0,3.49255848]
[1747930585959,0.00563,111680.0,111670.0,3.52535848]
[1747930586159,0.00563,111680.0,111670.0,3.5469832]
[1747930586371,0.00563,111680.0,111670.0,3.63652876]
[1747930586577,0.00563,111680.0,111670.0,4.32717034]
[1747930586689,0.00563,111680.0,111670.0,3.97652876]
[1747930587750,0.01458359,111680.0,111670.0,3.34241476]
[1747930588017,0.02633572,111680.0,111670.0,3.78662547]
[1747930588234,0.22052873,111680.0,111670.0,3.81348936]
[1747930588448,0.22052873,111680.0,111670.0,3.46284778]
[1747930588661,0.22052873,111680.0,111670.0,3.81348936]
[1747930588885,0.20262131,111680.0,111670.0,3.16935052]
[1747930589099,0.20262131,111680.0,111670.0,2.62345139]
[1747930589313,0.20262131,111680.0,111670.0,3.24857139]
[1747930589535,0.26602131,111680.0,111670.0,1.51239863]
[1747930589746,0.36393145,111680.0,111670.0,1.54621563]
[1747930590205,0.27438589,111680.0,111670.0,1.54621563]
[1747930590444,0.02294833,111680.0,111670.0,2.10282023]
[1747930590661,0.01399458,111680.0,111670.0,2.10282023]
[1747930590894,0.01399458,111680.0,111670.0,2.26605545]
[1747930591143,0.00563,111680.0,111670.0,2.26605545]
[1747930592047,0.00563,111680.0,111670.0,2.60505545]
[1747930592484,0.00763,111680.0,111670.0,2.60505545]
[1747930592695,0.00563,111680.0,111670.0,2.60505545]
[1747930592919,0.03249093,111680.0,111670.0,2.45320989]
[1747930593136,0.22948208,111680.0,111670.0,1.4791355]
[1747930593357,0.22152913,111680.0,111670.0,1.47913558]
[1747930593592,0.02453742,111680.0,111670.0,1.4970446]
[1747930593816,0.02453742,111680.0,111670.0,2.1221646]
[1747930594029,0.03349141,111680.0,111670.0,2.1221646]
[1747930594259,0.0362897,111680.0,111670.0,2.1221646]
[1747930594462,0.0362897,111680.0,111670.0,1.4970446]
[1747930594674,0.0362897,111680.0,111670.0,2.1221646]
[1747930594897,0.2064192,111680.0,111670.0,1.69482687]
[1747930595121,0.26812091,111680.0,111670.0,2.30855721]
[1747930595335,0.26812091,111680.0,111670.0,2.30994687]
[1747930595822,0.26812091,111680.0,111670.0,2.49800095]
[1747930596044,0.27649546,111680.0,111670.0,2.49800095]
[1747930596481,0.27649546,111680.0,111670.0,2.50695566]
[1747930596706,0.24409546,111680.0,111670.0,2.50695582]
[1747930596915,0.21199546,111680.0,111670.0,2.50695582]
[1747930597350,0.20362091,111680.0,111670.0,2.50695582]
[1747930597773,0.19466708,111680.0,111670.0,2.30994687]
[1747930597996,0.18571309,111680.0,111670.0,2.13840442]
[1747930598218,0.18571309,111680.0,111670.0,2.30994687]
[1747930598449,0.18571309,111680.0,111670.0,2.08530095]
[1747930598895,0.18571309,111680.0,111670.0,2.09425582]
[1747930599117,0.19466708,111680.0,111670.0,2.11216532]
[1747930599372,0.19466708,111680.0,111670.0,2.10321061]
[1747930599584,0.18571309,111680.0,111670.0,2.43425582]
[1747930599790,0.01558359,111680.0,111670.0,2.44321061]
[1747930600028,0.02453734,111680.0,111670.0,2.45216532]
[1747930600492,0.02453734,111680.0,111670.0,2.46111939]
[1747930600933,0.00663,111680.0,111670.0,2.47111939]
[1747930601164,0.00942835,111680.0,111670.0,2.47111939]
[1747930601914,0.00663,111680.0,111670.0,2.62546495]
[1747930602113,0.00663,111680.0,111670.0,2.97610653]
[1747930602338,0.00663,111680.0,111670.0,2.27482337]
[1747930602813,0.00563,111680.0,111670.0,2.62546495]
[1747930604386,0.00563,111680.0,111670.0,3.46152738]
[1747930604833,0.00563,111680.0,111670.0,4.08664738]
[1747930605281,0.00563,111680.0,111670.0,2.99064738]
[1747930605513,0.02124271,111690.0,111680.0,0.63667509]
[1747930605753,0.02124271,111690.0,111680.0,2.93220681]
[1747930605980,0.02124271,111690.0,111680.0,2.93936432]
[1747930606865,0.00061742,111700.0,111690.0,0.57185666]
[1747930607105,0.00061742,111700.0,111690.0,2.8498668]
[1747930607322,0.00061742,111700.0,111690.0,2.85202367]
[1747930609120,0.00061742,111700.0,111690.0,2.85183144]
[1747930609350,0.00061742,111700.0,111690.0,3.20859144]
[1747930609587,0.00061742,111700.0,111690.0,3.20320178]
[1747930610044,0.00061742,111700.0,111690.0,2.5916306]
[1747930610264,0.00061742,111700.0,111690.0,3.2167106]
[1747930610497,0.00061742,111700.0,111690.0,2.5916306]
[1747930610711,0.00061742,111700.0,111690.0,3.2167106]
[1747930611151,0.00061742,111700.0,111690.0,2.14574235]
[1747930611367,0.02131897,111700.0,111690.0,3.44509738]
[1747930611579,0.00341491,111700.0,111690.0,3.43154856]
[1747930611799,0.01236674,111700.0,111690.0,3.43154856]
[1747930612226,0.02131881,111700.0,111690.0,3.43154856]
[1747930612431,0.20036983,111700.0,111690.0,2.77069628]
[1747930612635,0.02747355,111700.0,111690.0,3.41364242]
[1747930612899,0.01236707,111700.0,111690.0,3.42259521]
[1747930613142,0.00061742,111700.0,111690.0,3.42259521]
[1747930613382,0.00061742,111700.0,111690.0,2.79755521]
[1747930613595,0.00061742,111700.0,111690.0,3.48469521]
[1747930614214,0.00956925,111700.0,111690.0,3.48469521]
[1747930614420,0.00061742,111700.0,111690.0,2.87301784]
[1747930614644,0.00061742,111700.0,111690.0,3.5876034]
[1747930615086,0.00061742,111700.0,111690.0,4.0003034]
[1747930615473,0.00061742,111700.0,111690.0,4.0003434]
[1747930616327,0.00061742,111700.0,111690.0,3.60218425]
[1747930616980,0.00956933,111700.0,111690.0,2.9005034]
[1747930617208,0.00061742,111700.0,111690.0,3.5255434]
[1747930617429,0.20037071,111700.0,111690.0,3.05849733]
[1747930617645,0.01852148,111700.0,111690.0,3.435998]
[1747930617860,0.02747387,111700.0,111690.0,3.435998]
[1747930618300,0.00956933,111700.0,111690.0,3.435998]
[1747930618553,0.02747379,111700.0,111690.0,3.435998]
[1747930618757,0.02747387,111700.0,111690.0,3.435998]
[1747930620162,0.01852148,111700.0,111690.0,3.435998]
[1747930620366,0.02747387,111700.0,111690.0,3.435998]
[1747930620565,0.20652489,111700.0,111690.0,3.40913891]
[1747930620748,0.23902489,111700.0,111690.0,3.40472955]
[1747930621005,0.20652489,111700.0,111690.0,3.40472955]
[1747930621213,0.20652489,111700.0,111690.0,3.42263585]
[1747930621457,0.20652489,111700.0,111690.0,3.21670922]
[1747930621604,0.19757298,111700.0,111690.0,2.78864258]
[1747930621829,0.19757298,111700.0,111690.0,3.42263553]
[1747930622033,0.02747387,111700.0,111690.0,3.43158832]
[1747930622239,0.20932271,111700.0,111690.0,3.42263553]
[1747930622445,0.19757298,111700.0,111690.0,3.82638274]
[1747930623056,0.34086639,111700.0,111690.0,1.02136464]
[1747930623260,0.34086639,111700.0,111690.0,0.38936]
[1747930623458,0.34086639,111700.0,111690.0,1.0144]
[1747930623876,0.34921799,111700.0,111690.0,1.0144]
[1747930624099,0.34921799,111700.0,111690.0,1.8207]
[1747930624336,0.34921799,111700.0,111690.0,2.17134158]
[1747930624571,0.34921799,111700.0,111690.0,1.8207]
[1747930624831,0.34086639,111700.0,111690.0,1.0134]
[1747930625414,0.33563639,111700.0,111690.0,1.0134]
[1747930625824,0.33663639,111700.0,111690.0,1.0114]
[1747930626089,0.34499056,111700.0,111690.0,1.0114]
[1747930626277,0.34499056,111700.0,111690.0,1.0124]
[1747930626484,0.34499056,111700.0,111690.0,0.38736]
[1747930626733,0.34499056,111700.0,111690.0,1.01244]
[1747930626952,0.34499056,111700.0,111690.0,1.01144]
[1747930627382,0.34499056,111700.0,111690.0,2.516143]
[1747930627803,0.34399056,111700.0,111690.0,1.891063]
[1747930628012,0.34399056,111700.0,111690.0,2.516143]
[1747930628177,0.34799056,111700.0,111690.0,2.516143]
[1747930628399,0.34799056,111700.0,111690.0,0.74312]
[1747930628641,0.34799056,111700.0,111690.0,1.01144]
[1747930629074,0.40073887,111700.0,111690.0,1.01144]
[1747930629312,0.34799056,111700.0,111690.0,1.01144]
[1747930630212,0.34799056,111700.0,111690.0,0.38636]
[1747930630424,0.34799056,111700.0,111690.0,1.01148]
[1747930631684,0.69863214,111700.0,111690.0,4e-05]
[1747930631907,0.78815365,111700.0,111690.0,4e-05]
[1747930632114,0.78815365,111700.0,111690.0,0.62516]
[1747930632331,0.34799056,111700.0,111690.0,0.62516]
[1747930632744,0.69863214,111700.0,111690.0,0.62516]
[1747930633181,1.06317299,111700.0,111690.0,4e-05]
[1747930633373,1.07317299,111700.0,111690.0,0.62516]
[1747930633799,0.72253141,111700.0,111690.0,0.62516]